fUST/lending_fUST_20240707
["ID","MTS","AMOUNT","RATE_DAILY","PERIOD"]
[331403258,1720347115992,-500.0,0.00044657,120]
[331403259,1720347116002,-2122.75,0.00044657,120]
[331403260,1720347116012,-590.79,0.00044657,120]
[331403261,1720347116022,-500.0,0.00044657,120]
[331403262,1720347116032,-500.0,0.00044657,120]
[331403263,1720347116041,-595.38,0.00044657,120]
[331403264,1720347116051,-844.48,0.00044657,120]
[331403265,1720347116061,-1266.15,0.00044657,120]
[331403266,1720347116071,-1260.56,0.00044657,120]
[331403267,1720347116080,-500.0,0.00044657,120]
[331403268,1720347116090,-500.0,0.00044657,120]
[331403269,1720347116099,-33955.97,0.00044657,120]
[331403270,1720347116112,-1229.15,0.00044657,120]
[331403271,1720347116122,-500.0,0.00044657,120]
[331403272,1720347116131,-500.0,0.00044657,120]
[331403273,1720347116141,-500.0,0.00044657,120]
[331403274,1720347116151,-462.59921647,0.00044657,120]
[331403275,1720347116161,-500.0,0.00044657,120]
[331403276,1720347116171,-620.32,0.00044657,120]
[331403277,1720347116182,-500.0,0.00044657,120]
[331403278,1720347116191,-500.0,0.00044657,120]
[331403279,1720347116201,-1166.72,0.00044657,120]
[331403280,1720347116211,-1466.22,0.00044657,120]
[331403281,1720347116221,-503.60518429,0.00044657,120]
[331403282,1720347116230,-500.0,0.00044657,120]
[331403283,1720347116240,-512.11420616,0.00044657,120]
[331403284,1720347116250,-529.53,0.00044657,120]
[331403285,1720347116259,-500.0,0.00044657,120]
[331403286,1720347116270,-500.0,0.00044657,120]
[331403287,1720347116280,-500.0,0.00044657,120]
[331403288,1720347116290,-500.0,0.00044657,120]
[331403289,1720347116300,-502.05241457,0.00044657,120]
[331403290,1720347116310,-502.44006132,0.00044657,120]
[331403291,1720347116319,-500.0,0.00044657,120]
[331403292,1720347116329,-500.0,0.00044657,120]
[331403293,1720347116339,-1741.41,0.00044657,120]
[331403294,1720347116348,-500.0,0.00044657,120]
[331403295,1720347116359,-500.0,0.00044657,120]
[331403296,1720347116368,-500.0,0.00044657,120]
[331403297,1720347116378,-500.0,0.00044657,120]
[331403298,1720347116388,-500.0,0.00044657,120]
[331403299,1720347116398,-500.0,0.00044657,120]
[331403300,1720347116407,-1189.37,0.00044657,120]
[331403301,1720347116417,-500.0,0.00044657,120]
[331403302,1720347116427,-500.0,0.00044657,120]
[331403303,1720347116436,-500.0,0.00044657,120]
[331403304,1720347116446,-575.08013473,0.00044657,120]
[331403305,1720347116455,-500.0,0.00044657,120]
[331403306,1720347116465,-1679.86,0.00044657,120]
[331403307,1720347116475,-500.0,0.00044657,120]
[331403308,1720347116485,-844.82,0.00044657,120]
[331403309,1720347116494,-564.97,0.00044657,120]
[331403310,1720347116503,-500.0,0.00044657,120]
[331403311,1720347116513,-1297.58,0.00044657,120]
[331403312,1720347116523,-1090.22,0.00044657,120]
[331403313,1720347116532,-580.81832413,0.00044657,120]
[331403314,1720347116542,-500.0,0.00044657,120]
[331403315,1720347116552,-500.0,0.00044657,120]
[331403316,1720347116562,-500.0,0.00044657,120]
[331403317,1720347116571,-500.0,0.00044657,120]
[331403318,1720347116582,-1360.1,0.00044657,120]
[331403319,1720347116591,-731.34,0.00044657,120]
[331403320,1720347116601,-500.0,0.00044657,120]
[331403321,1720347116611,-500.0,0.00044657,120]
[331403322,1720347116621,-500.0,0.00044657,120]
[331403323,1720347116631,-500.0,0.00044657,120]
[331403324,1720347116641,-500.0,0.00044657,120]
[331403325,1720347116651,-1170.99,0.00044657,120]
[331403326,1720347116662,-500.0,0.00044657,120]
[331403327,1720347116672,-17957.62,0.00044657,120]
[331403328,1720347116683,-500.0,0.00044657,120]
[331403329,1720347116694,-500.0,0.00044657,120]
[331403330,1720347116704,-2155.79,0.00044657,120]
[331403331,1720347116714,-500.0,0.00044657,120]
[331403332,1720347116724,-500.0,0.00044657,120]
[331403333,1720347116734,-990.62,0.00044657,120]
[331403334,1720347116744,-760.13,0.00044657,120]
[331403335,1720347116754,-502.59942762,0.00044657,120]
[331403336,1720347116764,-500.0,0.00044657,120]
[331403337,1720347116774,-500.0,0.00044657,120]
[331403338,1720347116783,-1274.08,0.00044657,120]
[331403339,1720347116797,-500.0,0.00044657,120]
[331403340,1720347116807,-19633.38,0.00044657,120]
[331403341,1720347116816,-500.0,0.00044657,120]
[331403342,1720347116825,-500.0,0.00044657,120]
[331403343,1720347116835,-806.21,0.00044657,120]
[331403344,1720347116844,-500.0,0.00044657,120]
[331403345,1720347116854,-500.0,0.00044657,120]
[331403346,1720347116864,-834.54,0.00044657,120]
[331403347,1720347116878,-555.67,0.00044657,120]
[331403348,1720347116888,-500.0,0.00044657,120]
[331403349,1720347116898,-886.97,0.00044657,120]
[331403350,1720347116908,-500.0,0.00044657,120]
[331403351,1720347116917,-500.0,0.00044657,120]
[331403352,1720347116927,-868.77,0.00044657,120]
[331403353,1720347116936,-997.77,0.00044657,120]
[331403354,1720347116946,-1022.9,0.00044657,120]
[331403355,1720347116956,-190.77234763,0.00044657,120]
[331403356,1720347116967,-692.59,0.00044657,120]
[331403357,1720347116976,-686.48,0.00044657,120]
[331403358,1720347116985,-500.0,0.00044657,120]
[331403359,1720347116995,-3272.31,0.00044657,120]
[331403360,1720347117004,-500.0,0.00044657,120]
[331403361,1720347117014,-500.0,0.00044657,120]
[331403362,1720347117023,-500.0,0.00044657,120]
[331403363,1720347117032,-500.0,0.00044657,120]
[331403364,1720347117041,-500.0,0.00044657,2]
[331403365,1720347117050,-800.53,0.00044657,120]
[331403366,1720347117060,-764.61,0.00044657,120]
[331403367,1720347117070,-500.0,0.00044657,120]
[331403368,1720347117080,-500.0,0.00044657,120]
[331403369,1720347117090,-500.0,0.00044657,120]
[331403370,1720347117100,-500.0,0.00044657,120]
[331403371,1720347117111,-515.08,0.00044657,120]
[331403372,1720347117121,-500.0,0.00044657,120]
[331403373,1720347117131,-507.2800447,0.00044657,120]
[331403374,1720347117141,-652.59,0.00044657,120]
[331403375,1720347117151,-500.0,0.00044657,120]
[331403376,1720347117161,-539.31,0.00044657,120]
[331403377,1720347117171,-500.0,0.00044657,120]
[331403378,1720347117181,-3819.92,0.00044657,120]
[331403379,1720347117191,-1472.32,0.00044657,7]
[331403380,1720347117201,-500.0,0.00044657,120]
[331403381,1720347117210,-502.604327,0.00044657,120]
[331403382,1720347117219,-500.0,0.00044657,120]
[331403383,1720347117229,-529.59,0.00044657,120]
[331403384,1720347117238,-2352.27,0.00044657,120]
[331403385,1720347117249,-500.0,0.00044657,120]
[331403386,1720347117259,-500.0,0.00044657,120]
[331403387,1720347117269,-777.74,0.00044657,120]
[331403388,1720347117280,-500.0,0.00044657,120]
[331403389,1720347117292,-780.73,0.00044657,120]
[331403390,1720347117301,-500.0,0.00044657,120]
[331403391,1720347117311,-500.0,0.00044657,120]
[331403392,1720347117320,-500.0,0.00044657,120]
[331403393,1720347117329,-500.0,0.00044657,120]
[331403394,1720347117339,-671.8,0.00044657,120]
[331403395,1720347117350,-2174.43,0.00044657,120]
[331403396,1720347117359,-6995.33,0.00044657,120]
[331403397,1720347117369,-1875.52,0.00044657,120]
[331403398,1720347117378,-1180.04,0.00044657,120]
[331403399,1720347117388,-500.6,0.00044657,120]
[331403400,1720347117397,-500.0,0.00044657,120]
[331403401,1720347117407,-1990.29,0.00044657,120]
[331403402,1720347117416,-500.0,0.00044657,120]
[331403403,1720347117426,-500.0,0.00044657,120]
[331403404,1720347117435,-500.0,0.00044657,120]
[331403405,1720347117445,-1014.07,0.00044657,120]
[331403406,1720347117459,-500.0,0.00044657,120]
[331403407,1720347117468,-500.0,0.00044657,120]
[331403408,1720347117478,-1365.67,0.00044657,120]
[331403409,1720347117487,-500.0,0.00044657,120]
[331403410,1720347117498,-668.62,0.00044657,120]
[331403411,1720347117509,-500.0,0.00044657,120]
[331403412,1720347117519,-693.64,0.00044657,120]
[331403413,1720347117529,-500.0,0.00044657,120]
[331403414,1720347117538,-67758.47,0.00044657,120]
[331403415,1720347117548,-627.2,0.00044657,120]
[331403416,1720347117558,-800.11,0.00044657,120]
[331403417,1720347117569,-5309.62,0.00044657,120]
[331403418,1720347117579,-1034.58,0.00044657,120]
[331403419,1720347117589,-1285.7,0.00044657,120]
[331403420,1720347117599,-2445.93,0.00044657,120]
[331403421,1720347117609,-508.27,0.00044657,120]
[331403422,1720347117618,-500.0,0.00044657,120]
[331403423,1720347117628,-500.0,0.00044657,120]
[331403424,1720347117637,-1752.72,0.00044657,120]
[331403425,1720347117647,-500.0,0.00044657,120]
[331403426,1720347117656,-500.0,0.00044657,120]
[331403427,1720347117666,-490.75683291,0.00044657,120]
[331403428,1720347117676,-11051.01,0.00044657,120]
[331403429,1720347117685,-8208.23,0.00044657,120]
[331403430,1720347117695,-11970.34,0.00044657,120]
[331403431,1720347117704,-534.87,0.00044657,120]
[331403432,1720347117714,-500.0,0.00044657,120]
[331403433,1720347117723,-9627.04,0.00044657,120]
[331403434,1720347117733,-500.0,0.00044657,120]
[331403435,1720347117743,-500.0,0.00044657,120]
[331403436,1720347117752,-500.0,0.00044657,120]
[331403437,1720347117762,-500.0,0.00044657,120]
[331403438,1720347117771,-5688.11,0.00044657,120]
[331403439,1720347117781,-4717.24,0.00044657,120]
[331403440,1720347117793,-500.0,0.00044657,120]
[331403441,1720347117803,-4429.83,0.00044657,120]
[331403442,1720347117813,-4266.09,0.00044657,120]
[331403443,1720347117823,-500.0,0.00044657,120]
[331403444,1720347117834,-500.0,0.00044657,120]
[331403445,1720347117843,-2704.38,0.00044657,120]
[331403446,1720347117853,-1021.51,0.00044657,120]
[331403447,1720347117864,-1541.47,0.00044657,120]
[331403448,1720347117874,-748.13,0.00044657,120]
[331403449,1720347117883,-924.03,0.00044657,120]
[331403450,1720347117893,-500.0,0.00044657,120]
[331403451,1720347117903,-500.0,0.00044657,120]
[331403452,1720347117912,-500.0,0.00044657,120]
[331403453,1720347117921,-500.0,0.00044657,120]
[331403454,1720347117932,-500.0,0.00044657,120]
[331403455,1720347117942,-500.0,0.00044657,120]
[331403456,1720347117951,-844.26,0.00044657,120]
[331403457,1720347117961,-12793.66,0.00044657,120]
[331403458,1720347117971,-500.0,0.00044657,120]
[331403459,1720347117981,-500.0,0.00044657,120]
[331403460,1720347117991,-500.0,0.00044657,120]
[331403461,1720347118001,-896.63,0.00044657,120]
[331403462,1720347118011,-618.83,0.00044657,120]
[331403463,1720347118020,-500.0,0.00044657,120]
[331403464,1720347118030,-7734.13,0.00044657,21]
[331403465,1720347118039,-500.0,0.00044657,120]
[331403466,1720347118049,-6948.55,0.00044657,120]
[331403467,1720347118058,-2118.44,0.00044657,120]
[331403468,1720347118068,-500.0,0.00044657,120]
[331403469,1720347118077,-500.0,0.00044657,120]
[331403470,1720347118087,-1933.54,0.00044657,21]
[331403471,1720347118200,-1280.73,0.00044657,120]
[331403472,1720347118210,-500.0,0.00044657,120]
[331403473,1720347118221,-11105.94,0.00044657,120]
[331403474,1720347118230,-984.09,0.00044657,120]
[331403475,1720347118240,-500.0,0.00044657,120]
[331403476,1720347118250,-500.0,0.00044657,120]
[331403477,1720347118259,-500.0,0.00044657,120]
[331403478,1720347118269,-500.0,0.00044657,120]
[331403479,1720347118279,-772.24,0.00044657,120]
[331403480,1720347118289,-6036.83,0.00044657,120]
[331403481,1720347118298,-500.0,0.00044657,120]
[331403482,1720347118307,-500.0,0.00044657,120]
[331403483,1720347118317,-2113.87,0.00044657,120]
[331403484,1720347118327,-449.94535839,0.00044657,120]
[331403485,1720347118343,-15042.94,0.00044657,120]
[331403486,1720347118352,-887.89,0.00044657,120]
[331403487,1720347118362,-575.22583109,0.00044657,120]
[331403488,1720347118371,-500.0,0.00044657,120]
[331403489,1720347118381,-500.0,0.00044657,120]
[331403490,1720347118391,-1240.73,0.00044657,120]
[331403491,1720347118400,-500.0,0.00044657,120]
[331403492,1720347118410,-500.0,0.00044657,120]
[331403493,1720347118420,-688.3,0.00044657,120]
[331403494,1720347118430,-600.4,0.00044657,120]
[331403495,1720347118439,-4477.61,0.00044657,120]
[331403496,1720347118449,-1561.9,0.00044657,120]
[331403497,1720347118458,-5599.32,0.00044657,120]
[331403498,1720347118468,-240.36194652,0.00044657,120]
[331403499,1720347118478,-500.0,0.00044657,120]
[331403500,1720347118488,-500.0,0.00044657,120]
[331403501,1720347118497,-626.43,0.00044657,120]
[331403502,1720347118506,-500.0,0.00044657,120]
[331403503,1720347118515,-1633.14,0.00044657,120]
[331403504,1720347118525,-2966.16,0.00044657,120]
[331403505,1720347118535,-500.0,0.00044657,120]
[331403506,1720347118544,-500.0,0.00044657,120]
[331403507,1720347118555,-757.52,0.00044657,120]
[331403508,1720347118564,-1087.62,0.00044657,120]
[331403509,1720347118575,-500.0,0.00044657,120]
[331403510,1720347118587,-667.57,0.00044657,120]
[331403511,1720347118598,-500.0,0.00044657,120]
[331403512,1720347118608,-841.97,0.00044657,120]
[331403513,1720347118618,-479.27,0.00044657,120]
[331403514,1720347118627,-500.0,0.00044657,120]
[331403515,1720347118637,-1485.95,0.00044657,120]
[331403516,1720347118647,-500.0,0.00044657,120]
[331403517,1720347118656,-2654.48,0.00044657,120]
[331403518,1720347118666,-2654.48,0.00044657,120]
[331403519,1720347118677,-500.0,0.00044657,120]
[331403520,1720347118687,-7224.58,0.00044657,120]
[331403521,1720347118696,-500.0,0.00044657,120]
[331403522,1720347118708,-500.0,0.00044657,120]
[331403523,1720347118718,-2906.61,0.00044657,120]
[331403524,1720347118729,-500.0,0.00044657,120]
[331403525,1720347118739,-778.38,0.00044657,120]
[331403526,1720347118749,-500.0,0.00044657,120]
[331403527,1720347118759,-503.68030026,0.00044657,120]
[331403528,1720347118769,-641.22,0.00044657,120]
[331403529,1720347118779,-171.13664555,0.00044657,120]
[331403530,1720347118791,-677.83,0.00044657,120]
[331403531,1720347118802,-500.0,0.00044657,120]
[331403532,1720347118811,-253.05143718,0.00044657,120]
[331403533,1720347118821,-508.07175312,0.00044657,20]
[331403534,1720347118831,-500.0,0.00044657,120]
[331403535,1720347118840,-500.0,0.00044657,120]
[331403536,1720347118850,-950.32,0.00044657,120]
[331403537,1720347118859,-500.0,0.00044657,120]
[331403538,1720347118870,-500.0,0.00044657,120]
[331403539,1720347118879,-791.08,0.00044657,120]
[331403540,1720347118890,-500.0,0.00044657,120]
[331403541,1720347118899,-4029.35,0.00044657,120]
[331403542,1720347118909,-500.0,0.00044657,120]
[331403543,1720347118919,-500.0,0.00044657,120]
[331403544,1720347118931,-3693.57,0.00044657,120]
[331403545,1720347118941,-1139.2,0.00044657,120]
[331403546,1720347118951,-679.83,0.00044657,120]
[331403547,1720347118962,-500.0,0.00044657,120]
[331403548,1720347118972,-500.0,0.00044657,120]
[331403549,1720347118982,-500.0,0.00044657,120]
[331403550,1720347118992,-681.62,0.00044657,120]
[331403551,1720347119002,-841.38,0.00044657,120]
[331403552,1720347119012,-19997.62,0.00044657,120]
[331403553,1720347119022,-500.0,0.00044657,120]
[331403554,1720347119032,-500.0,0.00044657,120]
[331403555,1720347119042,-500.0,0.00044657,120]
[331403556,1720347119051,-1478.86,0.00044657,120]
[331403557,1720347119061,-500.0,0.00044657,120]
[331403558,1720347119071,-500.0,0.00044657,120]
[331403559,1720347119081,-9165.57,0.00044657,120]
[331403560,1720347119091,-500.0,0.00044657,120]
[331403561,1720347119101,-500.0,0.00044657,120]
[331403562,1720347119113,-500.0,0.00044657,120]
[331403563,1720347119123,-517.48511224,0.00044657,120]
[331403564,1720347119133,-561.37709906,0.00044657,120]
[331403565,1720347119143,-500.0,0.00044657,120]
[331403566,1720347119154,-356.16922688,0.00044657,120]
[331403567,1720347119164,-222.89702236,0.00044657,120]
[331403568,1720347119174,-500.0,0.00044657,120]
[331403569,1720347119188,-2498.75,0.00044657,120]
[331403570,1720347119201,-500.0,0.00044657,120]
[331403571,1720347119212,-500.0,0.00044657,120]
[331403572,1720347119222,-500.0,0.00044657,120]
[331403573,1720347119232,-1179.34,0.00044657,120]
[331403574,1720347119242,-500.0,0.00044657,120]
[331403575,1720347119252,-500.0,0.00044657,120]
[331403576,1720347119262,-500.0,0.00044657,120]
[331403577,1720347119272,-808.69,0.00044657,120]
[331403578,1720347119283,-500.0,0.00044657,120]
[331403579,1720347119293,-500.0,0.00044657,120]
[331403580,1720347119303,-1048.51,0.00044657,120]
[331403581,1720347119313,-2474.14,0.00044657,120]
[331403582,1720347119324,-539.13,0.00044657,120]
[331403583,1720347119334,-500.0,0.00044657,120]
[331403584,1720347119345,-587.02,0.00044657,120]
[331403585,1720347119355,-500.0,0.00044657,120]
[331403586,1720347119366,-500.0,0.00044657,30]
[331403587,1720347119376,-316.60730643,0.00044657,120]
[331403588,1720347119387,-500.0,0.00044657,120]
[331403589,1720347119397,-3741.22,0.00044657,120]
[331403590,1720347119407,-2000.34,0.00044657,120]
[331403591,1720347119419,-531.11,0.00044657,120]
[331403592,1720347119432,-500.0,0.00044657,120]
[331403593,1720347119443,-316.96086452,0.00044657,120]
[331403594,1720347119453,-500.0,0.00044657,120]
[331403595,1720347119463,-780.81,0.00044657,120]
[331403596,1720347119474,-500.0,0.00044657,120]
[331403597,1720347119484,-500.0,0.00044657,120]
[331403598,1720347119494,-500.0,0.00044657,120]
[331403599,1720347119504,-500.0,0.00044657,120]
[331403600,1720347119514,-321.12004322,0.00044657,120]
[331403601,1720347119524,-500.0,0.00044657,120]
[331403602,1720347119534,-500.0,0.00044657,120]
[331403603,1720347119544,-500.0,0.00044657,120]
[331403604,1720347119555,-500.0,0.00044657,120]
[331403605,1720347119565,-19236.53,0.00044657,120]
[331403606,1720347119576,-500.0,0.00044657,120]
[331403607,1720347119586,-500.0,0.00044657,120]
[331403608,1720347119596,-3413.69,0.00044657,120]
[331403609,1720347119607,-711.18,0.00044657,120]
[331403610,1720347119617,-500.0,0.00044657,120]
[331403611,1720347119628,-500.0,0.00044657,120]
[331403612,1720347119639,-1121.56,0.00044657,120]
[331403613,1720347119649,-500.0,0.00044657,120]
[331403614,1720347119662,-1250.27,0.00044657,120]
[331403615,1720347119673,-500.0,0.00044657,120]
[331403616,1720347119686,-500.0,0.00044657,120]
[331403617,1720347119698,-500.0,0.00044657,120]
[331403618,1720347119709,-500.0,0.00044657,120]
[331403619,1720347119721,-500.0,0.00044657,120]
[331403620,1720347119733,-500.0,0.00044657,120]
[331403621,1720347119746,-500.0,0.00044657,120]
[331403622,1720347119757,-734.73,0.00044657,120]
[331403623,1720347119769,-1092.13,0.00044657,120]
[331403624,1720347119781,-500.0,0.00044657,120]
[331403625,1720347119797,-500.0,0.00044657,120]
[331403626,1720347119809,-1828.14,0.00044657,120]
[331403627,1720347119820,-452.45127628,0.00044657,120]
[331403628,1720347119834,-500.0,0.00044657,120]
[331403629,1720347119846,-2409.9,0.00044657,120]
[331403630,1720347119857,-1905.14,0.00044657,120]
[331403631,1720347119872,-1746.38,0.00044657,120]
[331403632,1720347119884,-882.47,0.00044657,120]
[331403633,1720347119895,-2825.71,0.00044657,120]
[331403634,1720347119907,-500.0,0.00044657,120]
[331403635,1720347119919,-500.0,0.00044657,120]
[331403636,1720347119931,-500.0,0.00044657,120]
[331403637,1720347119942,-639.95,0.00044657,120]
[331403638,1720347119953,-500.0,0.00044657,120]
[331403639,1720347119966,-500.0,0.00044657,120]
[331403640,1720347119978,-500.0,0.00044657,120]
[331403641,1720347119989,-500.0,0.00044657,120]
[331403642,1720347120000,-1399.76,0.00044657,120]
[331403643,1720347120011,-1399.76,0.00044657,120]
[331403644,1720347120024,-1122.0,0.00044657,120]
[331403645,1720347120035,-1122.0,0.00044657,120]
[331403646,1720347120048,-435.90653697,0.00044657,120]
[331403647,1720347120059,-500.0,0.00044657,120]
[331403648,1720347120071,-500.0,0.00044657,120]
[331403649,1720347120082,-1802.35,0.00044657,120]
[331403650,1720347120093,-1426.86,0.00044657,120]
[331403651,1720347120111,-169.35,0.00044657,120]
[331403652,1720347120127,-500.0,0.00044657,120]
[331403653,1720347120143,-500.0,0.00044657,120]
[331403654,1720347120155,-500.0,0.00044657,120]
[331403655,1720347120170,-500.0,0.00044657,120]
[331403656,1720347120189,-500.0,0.00044657,120]
[331403657,1720347120204,-500.0,0.00044657,120]
[331403658,1720347120223,-500.0,0.00044657,120]
[331403659,1720347120238,-1266.29,0.00044657,120]
[331403660,1720347120255,-500.0,0.00044657,120]
[331403661,1720347120271,-500.0,0.00044657,120]
[331403662,1720347120287,-500.0,0.00044657,120]
[331403663,1720347120300,-500.0,0.00044657,120]
[331403664,1720347120313,-275.81549119,0.00044657,120]
[331403665,1720347120327,-500.0,0.00044657,120]
[331403666,1720347120342,-500.0,0.00044657,120]
[331403667,1720347120357,-626.78,0.00044657,120]
[331403668,1720347120375,-613.87,0.00044657,120]
[331403669,1720347120388,-500.0,0.00044657,120]
[331403670,1720347120399,-588.03,0.00044657,120]
[331403671,1720347120414,-328.14,0.00044657,120]
[331403672,1720347120429,-500.0,0.00044657,120]
[331403673,1720347120441,-500.0,0.00044657,120]
[331403674,1720347120455,-500.0,0.00044657,120]
[331403675,1720347120469,-250.27,0.00044657,120]
[331403676,1720347120481,-342.23,0.00044657,120]
[331403677,1720347120495,-500.0,0.00044657,120]
[331403678,1720347120509,-500.0,0.00044657,120]
[331403679,1720347120522,-641.22,0.00044657,120]
[331403680,1720347120535,-490.59944579,0.00044657,120]
[331403681,1720347120548,-500.0,0.00044657,120]
[331403682,1720347120561,-943.8,0.00044657,120]
[331403683,1720347120575,-500.0,0.00044657,120]
[331403684,1720347120588,-500.0,0.00044657,120]
[331403685,1720347120600,-166.72,0.00044657,120]
[331403686,1720347120613,-622.75,0.00044657,120]
[331403687,1720347120625,-509.80111708,0.00044657,120]
[331403688,1720347120638,-500.0,0.00044657,120]
[331403689,1720347120652,-500.0,0.00044657,120]
[331403690,1720347120665,-500.0,0.00044657,120]
[331403691,1720347120679,-2629.96,0.00044657,120]
[331403692,1720347120691,-1281.3,0.00044657,120]
[331403693,1720347120705,-500.0,0.00044657,120]
[331403694,1720347120718,-500.0,0.00044657,120]
[331403695,1720347120730,-500.0,0.00044657,120]
[331403696,1720347120743,-500.0,0.00044657,120]
[331403697,1720347120755,-500.0,0.00044657,120]
[331403698,1720347120768,-590.79,0.00044657,120]
[331403699,1720347120781,-500.0,0.00044657,120]
[331403700,1720347120796,-470.58,0.00044657,120]
[331403701,1720347120809,-500.0,0.00044657,120]
[331403702,1720347120821,-500.0,0.00044657,120]
[331403703,1720347120834,-252.72,0.00044657,120]
[331403704,1720347120848,-500.0,0.00044657,120]
[331403705,1720347120861,-749.98,0.00044657,120]
[331403706,1720347120875,-500.0,0.00044657,120]
[331403707,1720347120888,-500.0,0.00044657,120]
[331403708,1720347120902,-686.76,0.00044657,120]
[331403709,1720347120915,-500.0,0.00044657,120]
[331403710,1720347120929,-1167.5,0.00044657,120]
[331403711,1720347120941,-818.05,0.00044657,120]
[331403712,1720347120955,-375.52,0.00044657,120]
[331403713,1720347120969,-500.0,0.00044657,120]
[331403714,1720347120982,-189.37,0.00044657,120]
[331403715,1720347120995,-500.0,0.00044657,120]
[331403716,1720347121010,-718.68,0.00044657,120]
[331403717,1720347121023,-500.0,0.00044657,120]
[331403718,1720347121035,-332.24,0.00044657,120]
[331403719,1720347121050,-428.91,0.00044657,120]
[331403720,1720347121062,-2844.1,0.00044657,120]
[331403721,1720347121076,-500.0,0.00044657,120]
[331403722,1720347121088,-500.0,0.00044657,21]
[331403723,1720347121100,-248.13,0.00044657,120]
[331403724,1720347121113,-485.95,0.00044657,120]
[331403725,1720347121126,-500.0,0.00044657,120]
[331403726,1720347121138,-460.56,0.00044657,120]
[331403727,1720347121150,-500.0,0.00044657,120]
[331403728,1720347121162,-164.4813442,0.00044657,120]
[331403729,1720347121175,-500.0,0.00044657,120]
[331403730,1720347121187,-500.0,0.00044657,120]
[331403731,1720347121199,-500.0,0.00044657,120]
[331403732,1720347121211,-500.0,0.00044657,120]
[331403733,1720347121223,-466.22,0.00044657,120]
[331403734,1720347121235,-500.0,0.00044657,120]
[331403735,1720347121247,-500.0,0.00044657,120]
[331403736,1720347121259,-285.7,0.00044657,120]
[331403737,1720347121271,-500.0,0.00044657,120]
[331403738,1720347121283,-500.0,0.00044657,120]
[331403739,1720347121295,-180.04,0.00044657,120]
[331403740,1720347121308,-500.0,0.00044657,120]
[331403741,1720347121319,-274.08,0.00044657,120]
[331403742,1720347121331,-500.34,0.00044657,120]
[331403743,1720347121343,-638.48,0.00044657,120]
[331403744,1720347121354,-500.0,0.00044657,120]
[331403745,1720347121366,-500.0,0.00044657,120]
[331403746,1720347121378,-213.79,0.00044657,120]
[331403747,1720347121390,-500.0,0.00044657,120]
[331403748,1720347121401,-241.41,0.00044657,120]
[331403749,1720347121413,-23870.39,0.00044657,120]
[331403750,1720347121425,-730.55,0.00044657,120]
[331403751,1720347121438,-150.42281844,0.00044827,30]
[331403752,1720347121450,-151.0,0.00044849,120]
[331403753,1720347121461,-157.413024,0.00044863,2]
[331403754,1720347121473,-1045.05367777,0.00044871,30]
[331403755,1720347121484,-1045.05367777,0.00044883,30]
[331403756,1720347121496,-360.0,0.000449,27]
[331403757,1720347121508,-1045.05367777,0.000449,30]